[Event "Titled Tuesday Blitz March 08 Early 2022"]
[White "Van den Dikkenberg, Erik"]
[Black "Berezin, Viktor"]
[WhiteFideId "1005880"]
[BlackFideId "14107872"]
[WhiteElo "2118"]
[BlackElo "2310"]
[Result "0-1"]
[Round "07"]
[TimeControl "180+1"]
[Date "2022.03.09"]
[WhiteClock "0:00:01"]
[BlackClock "0:00:04"]

1. e4 {[%clk 0:03:00]}  c6 {[%clk 0:01:55]} 2. d4 {[%clk 0:03:00]}  d5 {[%clk 0:01:50]} 3. exd5 {[%clk 0:03:00]}  cxd5 {[%clk 0:01:48]} 4. Bd3 {[%clk 0:03:00]}  Nc6 {[%clk 0:01:42]} 5. c3 {[%clk 0:03:00]}  e5 {[%clk 0:01:40]} 6. dxe5 {[%clk 0:02:59]}  Nxe5 {[%clk 0:01:37]} 7. Nf3 {[%clk 0:02:58]}  Bd6 {[%clk 0:01:26]} 8. Nxe5 {[%clk 0:02:53]}  Bxe5 {[%clk 0:01:25]} 9. Qe2 {[%clk 0:02:42]}  Qe7 {[%clk 0:01:19]} 10. Bb5+ {[%clk 0:02:41]}  Kf8 {[%clk 0:01:04]} 11. O-O {[%clk 0:02:35]}  Nf6 {[%clk 0:01:00]} 12. Re1 {[%clk 0:02:28]}  Bd6 {[%clk 0:00:53]} 13. Qxe7+ {[%clk 0:02:15]}  Bxe7 {[%clk 0:00:49]} 14. Bg5 {[%clk 0:02:14]}  h6 {[%clk 0:00:46]} 15. Bxf6 {[%clk 0:02:14]}  gxf6 {[%clk 0:00:44]} 16. Nd2 {[%clk 0:02:09]}  Bd6 {[%clk 0:00:40]} 17. Nf3 {[%clk 0:01:59]}  a6 {[%clk 0:00:35]} 18. Re8+ {[%clk 0:01:37]}  Kg7 {[%clk 0:00:20]} 19. Rxh8 {[%clk 0:01:36]}  Kxh8 {[%clk 0:00:19]} 20. Bd3 {[%clk 0:01:36]}  Kg7 {[%clk 0:00:19]} 21. Nd4 {[%clk 0:01:33]}  Bc5 {[%clk 0:00:15]} 22. Nf5+ {[%clk 0:01:28]}  Bxf5 {[%clk 0:00:14]} 23. Bxf5 {[%clk 0:01:28]}  Re8 {[%clk 0:00:15]} 24. Kf1 {[%clk 0:01:20]}  d4 {[%clk 0:00:14]} 25. Rd1 {[%clk 0:01:04]}  dxc3 {[%clk 0:00:11]} 26. bxc3 {[%clk 0:01:04]}  Re5 {[%clk 0:00:12]} 27. g4 {[%clk 0:01:00]}  h5 {[%clk 0:00:10]} 28. h3 {[%clk 0:00:59]}  hxg4 {[%clk 0:00:10]} 29. hxg4 {[%clk 0:00:59]}  b5 {[%clk 0:00:11]} 30. Rd8 {[%clk 0:00:49]}  a5 {[%clk 0:00:09]} 31. Rb8 {[%clk 0:00:37]}  Ba3 {[%clk 0:00:06]} 32. Rb7 {[%clk 0:00:31]}  Rc5 {[%clk 0:00:04]} 33. Be6 {[%clk 0:00:27]}  Rxc3 {[%clk 0:00:04]} 34. Rxf7+ {[%clk 0:00:25]}  Kg6 {[%clk 0:00:04]} 35. Rb7 {[%clk 0:00:24]}  b4 {[%clk 0:00:04]} 36. Bb3 {[%clk 0:00:22]}  Bc1 {[%clk 0:00:03]} 37. Rb5 {[%clk 0:00:20]}  Bg5 {[%clk 0:00:02]} 38. Rxa5 {[%clk 0:00:18]}  Rf3 {[%clk 0:00:03]} 39. Kg2 {[%clk 0:00:18]}  Rf4 {[%clk 0:00:03]} 40. f3 {[%clk 0:00:18]}  Rd4 {[%clk 0:00:04]} 41. Ra6 {[%clk 0:00:16]}  Bf4 {[%clk 0:00:04]} 42. Bc2+ {[%clk 0:00:16]}  Kg5 {[%clk 0:00:04]} 43. Ra5+ {[%clk 0:00:15]}  Be5 {[%clk 0:00:05]} 44. Be4 {[%clk 0:00:12]}  Rd2+ {[%clk 0:00:05]} 45. Kf1 {[%clk 0:00:12]}  Kf4 {[%clk 0:00:06]} 46. Ke1 {[%clk 0:00:12]}  Ke3 {[%clk 0:00:05]} 47. Rb5 {[%clk 0:00:08]}  Rh2 {[%clk 0:00:05]} 48. Kd1 {[%clk 0:00:09]}  Bc3 {[%clk 0:00:05]} 49. Rd5 {[%clk 0:00:07]}  Rxa2 {[%clk 0:00:05]} 50. Rd3+ {[%clk 0:00:06]}  Kf4 {[%clk 0:00:05]} 51. Kc1 {[%clk 0:00:06]}  Rf2 {[%clk 0:00:04]} 52. Rd5 {[%clk 0:00:06]}  Be5 {[%clk 0:00:05]} 53. Rb5 {[%clk 0:00:05]}  Bc3 {[%clk 0:00:04]} 54. Kd1 {[%clk 0:00:04]}  Kg3 {[%clk 0:00:04]} 55. g5 {[%clk 0:00:03]}  fxg5 {[%clk 0:00:04]} 56. Rxg5+ {[%clk 0:00:03]}  Kf4 {[%clk 0:00:04]} 57. Rf5+ {[%clk 0:00:03]}  Ke3 {[%clk 0:00:05]} 58. Bd5 {[%clk 0:00:02]}  Rd2+ {[%clk 0:00:05]} 59. Kc1 {[%clk 0:00:01]}  Rh2 {[%clk 0:00:05]} 60. Kd1 {[%clk 0:00:01]}  Rh1+ {[%clk 0:00:04]} 61. Kc2 {[%clk 0:00:02]}  Rh2+ {[%clk 0:00:04]} 62. Kb3 {[%clk 0:00:02]}  Rb2+ {[%clk 0:00:05]} 63. Ka4 {[%clk 0:00:02]}  Rd2 {[%clk 0:00:05]} 64. Kb3 {[%clk 0:00:02]}  Rd3 {[%clk 0:00:03]} 65. Kc4 {[%clk 0:00:02]}  Rd4+ {[%clk 0:00:03]} 66. Kb3 {[%clk 0:00:02]}  Be1 {[%clk 0:00:04]} 67. Bc4 {[%clk 0:00:01]}  Rd2 {[%clk 0:00:04]} 0-1


[Site "https://www.chess.com"]

[Event "Titled Tuesday Blitz March 08 Early 2022"]
[White "Vianello, Enrico"]
[Black "Sailer, Mike"]
[WhiteFideId "810738"]
[BlackFideId "2012901"]
[WhiteElo "2282"]
[BlackElo "2109"]
[Result "0-1"]
[Round "07"]
[TimeControl "180+1"]
[Date "2022.03.09"]
[WhiteClock "0:00:02"]
[BlackClock "0:00:03"]

1. d4 {[%clk 0:02:56]}  d5 {[%clk 0:03:00]} 2. Nf3 {[%clk 0:02:51]}  Bf5 {[%clk 0:03:00]} 3. Bf4 {[%clk 0:02:51]}  e6 {[%clk 0:03:01]} 4. e3 {[%clk 0:02:51]}  Nf6 {[%clk 0:03:01]} 5. Nbd2 {[%clk 0:02:51]}  Be7 {[%clk 0:03:01]} 6. h3 {[%clk 0:02:51]}  O-O {[%clk 0:03:01]} 7. Nh4 {[%clk 0:02:51]}  Be4 {[%clk 0:03:00]} 8. f3 {[%clk 0:02:48]}  Nfd7 {[%clk 0:03:00]} 9. fxe4 {[%clk 0:02:34]}  Bxh4+ {[%clk 0:03:00]} 10. g3 {[%clk 0:02:33]}  Bf6 {[%clk 0:02:51]} 11. g4 {[%clk 0:02:10]}  Bh4+ {[%clk 0:02:49]} 12. Ke2 {[%clk 0:02:11]}  c5 {[%clk 0:02:44]} 13. Bg2 {[%clk 0:02:04]}  cxd4 {[%clk 0:02:43]} 14. exd4 {[%clk 0:02:04]}  Nc6 {[%clk 0:02:39]} 15. Nb3 {[%clk 0:01:50]}  dxe4 {[%clk 0:02:24]} 16. Bxe4 {[%clk 0:01:48]}  f5 {[%clk 0:02:22]} 17. gxf5 {[%clk 0:01:42]}  exf5 {[%clk 0:02:21]} 18. Bf3 {[%clk 0:01:22]}  Re8+ {[%clk 0:02:14]} 19. Kd2 {[%clk 0:01:22]}  Nde5 {[%clk 0:02:04]} 20. Kc1 {[%clk 0:01:15]}  Nxf3 {[%clk 0:01:58]} 21. Qxf3 {[%clk 0:01:15]}  Nxd4 {[%clk 0:01:57]} 22. Nxd4 {[%clk 0:01:08]}  Qxd4 {[%clk 0:01:54]} 23. Rd1 {[%clk 0:01:04]}  Qc5 {[%clk 0:01:20]} 24. Kb1 {[%clk 0:01:01]}  Rac8 {[%clk 0:01:18]} 25. Qb3+ {[%clk 0:00:59]}  Kh8 {[%clk 0:01:14]} 26. a3 {[%clk 0:00:58]}  b6 {[%clk 0:01:04]} 27. Bd2 {[%clk 0:00:46]}  Bf6 {[%clk 0:01:04]} 28. Bb4 {[%clk 0:00:40]}  Qc4 {[%clk 0:00:48]} 29. Qxc4 {[%clk 0:00:36]}  Rxc4 {[%clk 0:00:48]} 30. Rd7 {[%clk 0:00:28]}  a5 {[%clk 0:00:47]} 31. Bd2 {[%clk 0:00:26]}  h6 {[%clk 0:00:38]} 32. c3 {[%clk 0:00:27]}  Rh4 {[%clk 0:00:33]} 33. Rd3 {[%clk 0:00:25]}  Re2 {[%clk 0:00:31]} 34. Ka2 {[%clk 0:00:20]}  Rh2 {[%clk 0:00:31]} 35. Rf1 {[%clk 0:00:18]}  g6 {[%clk 0:00:31]} 36. Rd6 {[%clk 0:00:17]}  Kg7 {[%clk 0:00:28]} 37. Bc1 {[%clk 0:00:07]}  b5 {[%clk 0:00:14]} 38. Re1 {[%clk 0:00:03]}  R4xh3 {[%clk 0:00:09]} 39. Ree6 {[%clk 0:00:03]}  Bxc3 {[%clk 0:00:05]} 40. Rxg6+ {[%clk 0:00:04]}  Kf7 {[%clk 0:00:04]} 41. Rge6 {[%clk 0:00:02]}  Rg3 {[%clk 0:00:03]} 0-1


[Site "https://www.chess.com"]

[Event "Titled Tuesday Blitz March 08 Early 2022"]
[White "Volkov, Maksim"]
[Black "Nazari, Arad"]
[WhiteFideId "54123070"]
[BlackFideId "12577324"]
[WhiteElo "2081"]
[BlackElo "2120"]
[Result "1-0"]
[Round "07"]
[TimeControl "180+1"]
[Date "2022.03.09"]
[WhiteClock "0:02:34"]
[BlackClock "0:02:31"]

1. d4 {[%clk 0:03:00]}  Nf6 {[%clk 0:02:56]} 2. c4 {[%clk 0:03:01]}  g6 {[%clk 0:02:50]} 3. g3 {[%clk 0:03:00]}  Bg7 {[%clk 0:02:49]} 4. Bg2 {[%clk 0:03:00]}  d5 {[%clk 0:02:46]} 5. cxd5 {[%clk 0:03:00]}  Nxd5 {[%clk 0:02:47]} 6. e4 {[%clk 0:03:00]}  Nb6 {[%clk 0:02:48]} 7. Ne2 {[%clk 0:03:00]}  c5 {[%clk 0:02:48]} 8. d5 {[%clk 0:03:00]}  e6 {[%clk 0:02:46]} 9. O-O {[%clk 0:03:00]}  O-O {[%clk 0:02:45]} 10. a4 {[%clk 0:02:59]}  exd5 {[%clk 0:02:46]} 11. exd5 {[%clk 0:02:59]}  Bf5 {[%clk 0:02:42]} 12. Na3 {[%clk 0:02:56]}  N8d7 {[%clk 0:02:39]} 13. Nc3 {[%clk 0:02:53]}  Ne5 {[%clk 0:02:36]} 14. Bf4 {[%clk 0:02:48]}  Nec4 {[%clk 0:02:34]} 15. Nxc4 {[%clk 0:02:39]}  Nxc4 {[%clk 0:02:35]} 16. Qb3 {[%clk 0:02:35]}  Nd2 {[%clk 0:02:31]} 17. Bxd2 {[%clk 0:02:34]} 1-0


[Site "https://www.chess.com"]

[Event "Titled Tuesday Blitz March 08 Early 2022"]
[White "Wagner, Dennis"]
[Black "Tsatsalashvili, Keti"]
[WhiteFideId "24650684"]
[BlackFideId "13603434"]
[WhiteElo "2355"]
[BlackElo "2246"]
[Result "1-0"]
[Round "07"]
[TimeControl "180+1"]
[Date "2022.03.09"]
[WhiteClock "0:01:14"]
[BlackClock "0:00:55"]

1. c4 {[%clk 0:03:00]}  e6 {[%clk 0:02:55]} 2. g3 {[%clk 0:02:59]}  d5 {[%clk 0:02:55]} 3. Bg2 {[%clk 0:03:00]}  Nf6 {[%clk 0:02:54]} 4. Nf3 {[%clk 0:02:59]}  d4 {[%clk 0:02:52]} 5. d3 {[%clk 0:02:58]}  c5 {[%clk 0:02:52]} 6. e4 {[%clk 0:02:57]}  Nc6 {[%clk 0:02:52]} 7. e5 {[%clk 0:02:58]}  Nd7 {[%clk 0:02:50]} 8. Bf4 {[%clk 0:02:55]}  Be7 {[%clk 0:02:43]} 9. h4 {[%clk 0:02:54]}  Qc7 {[%clk 0:02:34]} 10. Qe2 {[%clk 0:02:46]}  b6 {[%clk 0:02:29]} 11. Nbd2 {[%clk 0:02:44]}  Bb7 {[%clk 0:02:29]} 12. a3 {[%clk 0:02:26]}  O-O {[%clk 0:02:17]} 13. h5 {[%clk 0:02:16]}  h6 {[%clk 0:02:14]} 14. Kf1 {[%clk 0:02:12]}  Rfe8 {[%clk 0:02:12]} 15. Re1 {[%clk 0:02:10]}  Nf8 {[%clk 0:02:12]} 16. g4 {[%clk 0:02:05]}  Nh7 {[%clk 0:02:11]} 17. Ne4 {[%clk 0:02:00]}  f5 {[%clk 0:01:48]} 18. gxf5 {[%clk 0:01:55]}  exf5 {[%clk 0:01:46]} 19. Ng3 {[%clk 0:01:55]}  Rf8 {[%clk 0:01:37]} 20. Nh4 {[%clk 0:01:52]}  Bxh4 {[%clk 0:01:35]} 21. Rxh4 {[%clk 0:01:53]}  Nd8 {[%clk 0:01:31]} 22. Bd5+ {[%clk 0:01:50]}  Kh8 {[%clk 0:01:27]} 23. e6 {[%clk 0:01:50]}  Qe7 {[%clk 0:01:28]} 24. Rh2 {[%clk 0:01:39]}  Nf6 {[%clk 0:01:27]} 25. Nxf5 {[%clk 0:01:38]}  Nxd5 {[%clk 0:01:18]} 26. Nxe7 {[%clk 0:01:36]}  Nxf4 {[%clk 0:01:18]} 27. Ng6+ {[%clk 0:01:32]}  Nxg6 {[%clk 0:01:18]} 28. hxg6 {[%clk 0:01:33]}  Nc6 {[%clk 0:01:07]} 29. e7 {[%clk 0:01:14]}  Rfe8 {[%clk 0:01:04]} 30. Qf3 {[%clk 0:01:14]}  Rab8 {[%clk 0:00:56]} 31. Rxh6+ {[%clk 0:01:12]}  gxh6 {[%clk 0:00:54]} 32. Qf6+ {[%clk 0:01:13]}  Kg8 {[%clk 0:00:55]} 33. Qf7+ {[%clk 0:01:14]}  Kh8 {[%clk 0:00:55]} 34. Qh7# {[%clk 0:01:14]} 1-0


[Site "https://www.chess.com"]

[Event "Titled Tuesday Blitz March 08 Early 2022"]
[White "Yang, Kaiqi"]
[Black "Komiagina, Maria"]
[WhiteFideId "8604398"]
[BlackFideId "4153987"]
[WhiteElo "2373"]
[BlackElo "1945"]
[Result "1-0"]
[Round "07"]
[TimeControl "180+1"]
[Date "2022.03.09"]
[WhiteClock "0:00:14"]
[BlackClock "0:00:02"]

1. d4 {[%clk 0:02:58]}  Nf6 {[%clk 0:02:59]} 2. c4 {[%clk 0:02:58]}  e6 {[%clk 0:02:59]} 3. Nc3 {[%clk 0:02:56]}  Bb4 {[%clk 0:02:58]} 4. a3 {[%clk 0:02:55]}  Bxc3+ {[%clk 0:02:56]} 5. bxc3 {[%clk 0:02:56]}  O-O {[%clk 0:02:54]} 6. f3 {[%clk 0:02:57]}  d6 {[%clk 0:02:53]} 7. e4 {[%clk 0:02:57]}  Nbd7 {[%clk 0:02:52]} 8. Bd3 {[%clk 0:02:57]}  e5 {[%clk 0:02:52]} 9. Ne2 {[%clk 0:02:58]}  Qe7 {[%clk 0:02:37]} 10. O-O {[%clk 0:02:58]}  c5 {[%clk 0:02:30]} 11. Be3 {[%clk 0:02:34]}  Re8 {[%clk 0:02:22]} 12. Ng3 {[%clk 0:02:34]}  g6 {[%clk 0:02:16]} 13. Kh1 {[%clk 0:02:31]}  Nf8 {[%clk 0:01:45]} 14. f4 {[%clk 0:02:28]}  Ng4 {[%clk 0:01:40]} 15. Bg1 {[%clk 0:02:28]}  Qh4 {[%clk 0:01:20]} 16. Qf3 {[%clk 0:02:10]}  f6 {[%clk 0:00:54]} 17. h3 {[%clk 0:01:45]}  cxd4 {[%clk 0:00:52]} 18. cxd4 {[%clk 0:01:45]}  exf4 {[%clk 0:00:30]} 19. Qxf4 {[%clk 0:01:40]}  g5 {[%clk 0:00:30]} 20. Qxd6 {[%clk 0:01:32]}  Ng6 {[%clk 0:00:19]} 21. Nf5 {[%clk 0:00:48]}  Bxf5 {[%clk 0:00:18]} 22. Rxf5 {[%clk 0:00:48]}  Nf4 {[%clk 0:00:19]} 23. Rxf4 {[%clk 0:00:37]}  gxf4 {[%clk 0:00:18]} 24. Qxf4 {[%clk 0:00:36]}  h5 {[%clk 0:00:15]} 25. Rf1 {[%clk 0:00:27]}  Kg7 {[%clk 0:00:14]} 26. d5 {[%clk 0:00:25]}  Re5 {[%clk 0:00:13]} 27. Bd4 {[%clk 0:00:24]}  Rae8 {[%clk 0:00:11]} 28. Bxe5 {[%clk 0:00:24]}  Rxe5 {[%clk 0:00:09]} 29. Be2 {[%clk 0:00:20]}  Rg5 {[%clk 0:00:04]} 30. Kg1 {[%clk 0:00:15]}  Kg8 {[%clk 0:00:03]} 31. hxg4 {[%clk 0:00:14]}  Rxg4 {[%clk 0:00:02]} 32. Bxg4 {[%clk 0:00:14]} 1-0


[Site "https://www.chess.com"]

[Event "Titled Tuesday Blitz March 08 Early 2022"]
[White "Aldokhin, Ivan"]
[Black "Aitbayev, Aslan"]
[WhiteFideId "24115720"]
[BlackFideId "13704613"]
[WhiteElo "2231"]
[BlackElo "2385"]
[Result "0-1"]
[Round "08"]
[TimeControl "180+1"]
[Date "2022.03.08"]
[WhiteClock "0:00:04"]
[BlackClock "0:00:09"]

1. e4 {[%clk 0:03:00]}  e6 {[%clk 0:03:00]} 2. d4 {[%clk 0:02:59]}  d5 {[%clk 0:03:00]} 3. Nd2 {[%clk 0:03:00]}  c5 {[%clk 0:03:00]} 4. exd5 {[%clk 0:03:00]}  Qxd5 {[%clk 0:03:01]} 5. Ngf3 {[%clk 0:03:00]}  cxd4 {[%clk 0:03:02]} 6. Bc4 {[%clk 0:03:01]}  Qd6 {[%clk 0:03:03]} 7. O-O {[%clk 0:03:01]}  Nf6 {[%clk 0:03:03]} 8. Nb3 {[%clk 0:03:00]}  Nc6 {[%clk 0:03:04]} 9. Qe2 {[%clk 0:02:52]}  Be7 {[%clk 0:02:49]} 10. Rd1 {[%clk 0:02:52]}  e5 {[%clk 0:02:44]} 11. c3 {[%clk 0:02:36]}  O-O {[%clk 0:02:42]} 12. h3 {[%clk 0:02:17]}  Bf5 {[%clk 0:02:19]} 13. cxd4 {[%clk 0:01:55]}  e4 {[%clk 0:02:18]} 14. Nh2 {[%clk 0:01:54]}  Rac8 {[%clk 0:01:53]} 15. Be3 {[%clk 0:01:50]}  Nd5 {[%clk 0:01:48]} 16. Nf1 {[%clk 0:01:45]}  Nf4 {[%clk 0:01:44]} 17. Qd2 {[%clk 0:01:34]}  Nd3 {[%clk 0:01:31]} 18. Ng3 {[%clk 0:01:19]}  Bg6 {[%clk 0:01:31]} 19. Nxe4 {[%clk 0:01:19]}  Bxe4 {[%clk 0:01:28]} 20. Bxd3 {[%clk 0:01:19]}  Bxd3 {[%clk 0:01:26]} 21. Qxd3 {[%clk 0:01:19]}  Nb4 {[%clk 0:01:26]} 22. Qe4 {[%clk 0:00:57]}  Nd5 {[%clk 0:01:24]} 23. Bd2 {[%clk 0:00:54]}  f5 {[%clk 0:01:13]} 24. Qf3 {[%clk 0:00:53]}  Rc2 {[%clk 0:01:05]} 25. Bc3 {[%clk 0:00:42]}  Nxc3 {[%clk 0:00:41]} 26. bxc3 {[%clk 0:00:41]}  Qc6 {[%clk 0:00:37]} 27. Qxc6 {[%clk 0:00:24]}  bxc6 {[%clk 0:00:37]} 28. Rdc1 {[%clk 0:00:24]}  Rb2 {[%clk 0:00:38]} 29. Na5 {[%clk 0:00:22]}  c5 {[%clk 0:00:35]} 30. Nc6 {[%clk 0:00:22]}  Bd6 {[%clk 0:00:35]} 31. Nxa7 {[%clk 0:00:22]}  Ra8 {[%clk 0:00:33]} 32. Nc6 {[%clk 0:00:22]}  Raxa2 {[%clk 0:00:31]} 33. Rxa2 {[%clk 0:00:21]}  Rxa2 {[%clk 0:00:31]} 34. g3 {[%clk 0:00:21]}  f4 {[%clk 0:00:30]} 35. gxf4 {[%clk 0:00:17]}  Bxf4 {[%clk 0:00:27]} 36. Rd1 {[%clk 0:00:17]}  Rc2 {[%clk 0:00:25]} 37. d5 {[%clk 0:00:07]}  Bd6 {[%clk 0:00:22]} 38. Rd3 {[%clk 0:00:06]}  Kf7 {[%clk 0:00:18]} 39. Na5 {[%clk 0:00:06]}  Be5 {[%clk 0:00:14]} 40. Nc4 {[%clk 0:00:02]}  Bxc3 {[%clk 0:00:14]} 41. Kg2 {[%clk 0:00:02]}  Bf6 {[%clk 0:00:13]} 42. Ne3 {[%clk 0:00:02]}  Rc3 {[%clk 0:00:12]} 43. Rxc3 {[%clk 0:00:02]}  Bxc3 {[%clk 0:00:13]} 44. Nc4 {[%clk 0:00:03]}  Kf6 {[%clk 0:00:12]} 45. Kf3 {[%clk 0:00:03]}  Kf5 {[%clk 0:00:12]} 46. Ke3 {[%clk 0:00:03]}  Bd4+ {[%clk 0:00:13]} 47. Ke2 {[%clk 0:00:04]}  Bf6 {[%clk 0:00:11]} 48. f3 {[%clk 0:00:04]}  h5 {[%clk 0:00:11]} 49. Kd3 {[%clk 0:00:04]}  Kf4 {[%clk 0:00:11]} 50. d6 {[%clk 0:00:04]}  Kxf3 {[%clk 0:00:11]} 51. d7 {[%clk 0:00:05]}  Kg3 {[%clk 0:00:11]} 52. Ne3 {[%clk 0:00:03]}  Kxh3 {[%clk 0:00:10]} 53. Nd5 {[%clk 0:00:03]}  Bg5 {[%clk 0:00:11]} 54. Nf4+ {[%clk 0:00:01]}  Kg4 {[%clk 0:00:10]} 55. Ne6 {[%clk 0:00:02]}  Bf6 {[%clk 0:00:10]} 56. Nxc5 {[%clk 0:00:02]}  h4 {[%clk 0:00:10]} 57. Ne4 {[%clk 0:00:03]}  Bd8 {[%clk 0:00:11]} 58. Kd4 {[%clk 0:00:03]}  h3 {[%clk 0:00:11]} 59. Ke5 {[%clk 0:00:04]}  h2 {[%clk 0:00:10]} 60. Ke6 {[%clk 0:00:04]}  Kf4 {[%clk 0:00:09]} 61. Nf2 {[%clk 0:00:04]}  Kf3 {[%clk 0:00:09]} 62. Nh1 {[%clk 0:00:04]}  Kg2 {[%clk 0:00:09]} 63. Kf5 {[%clk 0:00:04]}  Kxh1 {[%clk 0:00:09]} 0-1


[Site "https://www.chess.com"]

[Event "Titled Tuesday Blitz March 08 Early 2022"]
[White "Alonso Rosell, Alvar"]
[Black "Kadam, Om Manish"]
[WhiteFideId "2270544"]
[BlackFideId "45076294"]
[WhiteElo "2474"]
[BlackElo "1729"]
[Result "1-0"]
[Round "08"]
[TimeControl "180+1"]
[Date "2022.03.08"]
[WhiteClock "0:00:24"]
[BlackClock "0:00:09"]

1. d4 {[%clk 0:03:00]}  Nf6 {[%clk 0:02:59]} 2. c4 {[%clk 0:03:00]}  e6 {[%clk 0:02:59]} 3. Nf3 {[%clk 0:03:00]}  d5 {[%clk 0:03:00]} 4. g3 {[%clk 0:03:00]}  Be7 {[%clk 0:03:00]} 5. Bg2 {[%clk 0:03:00]}  O-O {[%clk 0:03:00]} 6. Qc2 {[%clk 0:02:59]}  dxc4 {[%clk 0:03:00]} 7. Qxc4 {[%clk 0:02:53]}  a6 {[%clk 0:03:00]} 8. Ne5 {[%clk 0:02:31]}  Nbd7 {[%clk 0:02:54]} 9. O-O {[%clk 0:02:28]}  c6 {[%clk 0:02:36]} 10. Nd3 {[%clk 0:02:08]}  b5 {[%clk 0:02:30]} 11. Qxc6 {[%clk 0:02:07]}  Rb8 {[%clk 0:02:27]} 12. Qc2 {[%clk 0:01:44]}  Bb7 {[%clk 0:02:20]} 13. Bxb7 {[%clk 0:01:42]}  Rxb7 {[%clk 0:02:21]} 14. Nd2 {[%clk 0:01:42]}  Nb6 {[%clk 0:02:19]} 15. Nf3 {[%clk 0:01:39]}  Rc7 {[%clk 0:02:16]} 16. Qd1 {[%clk 0:01:38]}  Qd5 {[%clk 0:02:12]} 17. Bd2 {[%clk 0:01:31]}  Rfc8 {[%clk 0:02:09]} 18. Ba5 {[%clk 0:01:30]}  Rb7 {[%clk 0:01:51]} 19. b3 {[%clk 0:01:30]}  Nbd7 {[%clk 0:01:45]} 20. Rc1 {[%clk 0:01:18]}  Rbb8 {[%clk 0:01:41]} 21. Nb4 {[%clk 0:01:11]}  Qb7 {[%clk 0:01:28]} 22. Qd2 {[%clk 0:01:00]}  Ne4 {[%clk 0:01:23]} 23. Qd3 {[%clk 0:00:54]}  Nef6 {[%clk 0:01:12]} 24. Qb1 {[%clk 0:00:45]}  Bd6 {[%clk 0:01:07]} 25. Rxc8+ {[%clk 0:00:45]}  Rxc8 {[%clk 0:01:06]} 26. Rc1 {[%clk 0:00:46]}  h6 {[%clk 0:01:03]} 27. Ne1 {[%clk 0:00:41]}  Rxc1 {[%clk 0:00:58]} 28. Qxc1 {[%clk 0:00:41]}  Qe4 {[%clk 0:00:32]} 29. Qd2 {[%clk 0:00:28]}  Qb1 {[%clk 0:00:29]} 30. Nxa6 {[%clk 0:00:27]}  Ne4 {[%clk 0:00:26]} 31. Qc2 {[%clk 0:00:27]}  Qxc2 {[%clk 0:00:09]} 32. Nxc2 {[%clk 0:00:28]}  Ndf6 {[%clk 0:00:09]} 33. f3 {[%clk 0:00:27]}  Ng5 {[%clk 0:00:07]} 34. Bb4 {[%clk 0:00:26]}  Bxb4 {[%clk 0:00:05]} 35. Ncxb4 {[%clk 0:00:26]}  h5 {[%clk 0:00:06]} 36. Nc7 {[%clk 0:00:26]}  Nd5 {[%clk 0:00:05]} 37. Nbxd5 {[%clk 0:00:24]}  exd5 {[%clk 0:00:06]} 38. h4 {[%clk 0:00:23]}  Ne6 {[%clk 0:00:07]} 39. Nxe6 {[%clk 0:00:22]}  fxe6 {[%clk 0:00:08]} 40. a4 {[%clk 0:00:23]}  bxa4 {[%clk 0:00:09]} 41. bxa4 {[%clk 0:00:24]} 1-0


[Site "https://www.chess.com"]

[Event "Titled Tuesday Blitz March 08 Early 2022"]
[White "Ambartsumova, Karina"]
[Black "Odegov, Artem"]
[WhiteFideId "4166299"]
[BlackFideId "34183644"]
[WhiteElo "2262"]
[BlackElo "2286"]
[Result "1/2-1/2"]
[Round "08"]
[TimeControl "180+1"]
[Date "2022.03.09"]
[WhiteClock "0:00:04"]
[BlackClock "0:00:10"]

1. d4 {[%clk 0:03:00]}  Nf6 {[%clk 0:03:00]} 2. Nf3 {[%clk 0:02:58]}  c5 {[%clk 0:03:00]} 3. c4 {[%clk 0:02:56]}  cxd4 {[%clk 0:02:55]} 4. Nxd4 {[%clk 0:02:50]}  g6 {[%clk 0:02:55]} 5. Nc3 {[%clk 0:02:48]}  Bg7 {[%clk 0:02:54]} 6. e4 {[%clk 0:02:48]}  d6 {[%clk 0:02:54]} 7. Be2 {[%clk 0:02:47]}  O-O {[%clk 0:02:55]} 8. O-O {[%clk 0:02:46]}  Nc6 {[%clk 0:02:55]} 9. Nc2 {[%clk 0:02:47]}  Be6 {[%clk 0:02:53]} 10. Be3 {[%clk 0:02:46]}  Rc8 {[%clk 0:02:44]} 11. f4 {[%clk 0:02:27]}  Qd7 {[%clk 0:02:21]} 12. h3 {[%clk 0:02:01]}  Na5 {[%clk 0:02:09]} 13. b3 {[%clk 0:01:49]}  Nh5 {[%clk 0:01:06]} 14. Nd4 {[%clk 0:01:30]}  Ng3 {[%clk 0:00:17]} 15. Rf3 {[%clk 0:01:30]}  Nxe2+ {[%clk 0:00:16]} 16. Qxe2 {[%clk 0:01:31]}  f5 {[%clk 0:00:11]} 17. Rd1 {[%clk 0:01:28]}  fxe4 {[%clk 0:00:08]} 18. Nxe4 {[%clk 0:01:29]}  Bf5 {[%clk 0:00:08]} 19. Nc3 {[%clk 0:01:15]}  Rce8 {[%clk 0:00:04]} 20. g4 {[%clk 0:01:11]}  Be6 {[%clk 0:00:04]} 21. Bf2 {[%clk 0:00:40]}  Bf7 {[%clk 0:00:05]} 22. f5 {[%clk 0:00:32]}  e5 {[%clk 0:00:04]} 23. fxe6 {[%clk 0:00:31]}  Bxe6 {[%clk 0:00:04]} 24. Rxf8+ {[%clk 0:00:29]}  Bxf8 {[%clk 0:00:04]} 25. Qf3 {[%clk 0:00:28]}  Bg7 {[%clk 0:00:03]} 26. Ne4 {[%clk 0:00:24]}  Bf7 {[%clk 0:00:02]} 27. Nb5 {[%clk 0:00:20]}  Nc6 {[%clk 0:00:02]} 28. Rxd6 {[%clk 0:00:19]}  Qe7 {[%clk 0:00:02]} 29. Nf6+ {[%clk 0:00:11]}  Bxf6 {[%clk 0:00:02]} 30. Qxf6 {[%clk 0:00:11]}  Qxf6 {[%clk 0:00:02]} 31. Rxf6 {[%clk 0:00:12]}  a6 {[%clk 0:00:03]} 32. Nd6 {[%clk 0:00:11]}  Re7 {[%clk 0:00:04]} 33. Nxf7 {[%clk 0:00:11]}  Rxf7 {[%clk 0:00:05]} 34. Rxf7 {[%clk 0:00:11]}  Kxf7 {[%clk 0:00:05]} 35. Kg2 {[%clk 0:00:11]}  Ke6 {[%clk 0:00:05]} 36. Kf3 {[%clk 0:00:12]}  Nb4 {[%clk 0:00:06]} 37. a4 {[%clk 0:00:09]}  Nd3 {[%clk 0:00:06]} 38. Bd4 {[%clk 0:00:09]}  Nc1 {[%clk 0:00:05]} 39. b4 {[%clk 0:00:09]}  Nb3 {[%clk 0:00:05]} 40. Bc3 {[%clk 0:00:10]}  b5 {[%clk 0:00:03]} 41. axb5 {[%clk 0:00:09]}  axb5 {[%clk 0:00:04]} 42. cxb5 {[%clk 0:00:10]}  Kd5 {[%clk 0:00:05]} 43. b6 {[%clk 0:00:10]}  Kc6 {[%clk 0:00:05]} 44. Ke4 {[%clk 0:00:10]}  Nc1 {[%clk 0:00:05]} 45. Ke5 {[%clk 0:00:09]}  Nd3+ {[%clk 0:00:05]} 46. Kf6 {[%clk 0:00:09]}  Nf2 {[%clk 0:00:06]} 47. Kg7 {[%clk 0:00:07]}  Nxh3 {[%clk 0:00:06]} 48. Kxh7 {[%clk 0:00:08]}  g5 {[%clk 0:00:06]} 49. Kg6 {[%clk 0:00:08]}  Kxb6 {[%clk 0:00:06]} 50. Kf5 {[%clk 0:00:08]}  Kb5 {[%clk 0:00:06]} 51. Bd2 {[%clk 0:00:08]}  Kc4 {[%clk 0:00:05]} 52. Be1 {[%clk 0:00:08]}  Kb5 {[%clk 0:00:06]} 53. Ke4 {[%clk 0:00:07]}  Nf4 {[%clk 0:00:05]} 54. Kf5 {[%clk 0:00:07]}  Nd3 {[%clk 0:00:05]} 55. Bd2 {[%clk 0:00:07]}  Nf2 {[%clk 0:00:04]} 56. Kg6 {[%clk 0:00:06]}  Nxg4 {[%clk 0:00:04]} 57. Kxg5 {[%clk 0:00:05]}  Nf2 {[%clk 0:00:05]} 58. Be1 {[%clk 0:00:05]}  Nd3 {[%clk 0:00:05]} 59. Bd2 {[%clk 0:00:05]}  Nb2 {[%clk 0:00:05]} 60. Kf5 {[%clk 0:00:05]}  Nc4 {[%clk 0:00:06]} 61. Bc3 {[%clk 0:00:05]}  Nb6 {[%clk 0:00:06]} 62. Ke4 {[%clk 0:00:05]}  Nd7 {[%clk 0:00:06]} 63. Kd5 {[%clk 0:00:04]}  Nb8 {[%clk 0:00:07]} 64. Kd6 {[%clk 0:00:04]}  Nc6 {[%clk 0:00:07]} 65. Bd2 {[%clk 0:00:04]}  Nd4 {[%clk 0:00:07]} 66. Bc3 {[%clk 0:00:04]}  Nf5+ {[%clk 0:00:07]} 67. Ke5 {[%clk 0:00:04]}  Ng3 {[%clk 0:00:08]} 68. Kd5 {[%clk 0:00:04]}  Ne2 {[%clk 0:00:08]} 69. Be1 {[%clk 0:00:04]}  Nf4+ {[%clk 0:00:08]} 70. Ke4 {[%clk 0:00:04]}  Ne6 {[%clk 0:00:08]} 71. Bc3 {[%clk 0:00:03]}  Nc7 {[%clk 0:00:08]} 72. Ke5 {[%clk 0:00:04]}  Na6 {[%clk 0:00:09]} 73. Kd6 {[%clk 0:00:04]}  Nxb4 {[%clk 0:00:10]} 1/2-1/2


[Site "https://www.chess.com"]